fUSD/lending_fUSD_20260105
["ID","MTS","AMOUNT","RATE_DAILY","PERIOD"]
[400457958,1767581833884,500.0,0.00043483,120]
[400457959,1767581835053,528.37412008,0.00043483,120]
[400457960,1767581835403,546.6921808,0.00043483,120]
[400457961,1767581836925,566.85744728,0.00043483,120]
[400457962,1767581837006,198.31102848,0.00043483,120]
[400457963,1767581838713,515.49678615,0.00043483,120]
[400457964,1767581838783,528.61583409,0.00043483,120]
[400457965,1767581838987,329.84728636,0.00043483,120]
[400457966,1767581840166,500.0,0.00043483,120]
[400457967,1767581840720,557.54952174,0.00043483,120]
[400457968,1767581842923,235.35372962,0.00043483,120]
[400457969,1767581843197,542.16999862,0.00043483,120]
[400457970,1767581845286,281.86303376,0.00043483,120]
[400457971,1767581845385,500.0,0.00043483,120]
[400457972,1767581846539,542.25903612,0.00043483,120]
[400457973,1767581847784,608.21507673,0.00043483,120]
[400457974,1767581848548,520.23968015,0.00043483,120]
[400457975,1767581850646,518.47332523,0.00043483,120]
[400457976,1767581850842,612.0750971,0.00043483,120]
[400457977,1767581851623,500.0,0.00043483,120]
[400457978,1767581852268,537.24474376,0.00043483,120]
[400457979,1767581852907,553.36412045,0.00043483,120]
[400457980,1767581854230,532.34666115,0.00043483,120]
[400457981,1767581856000,500.0,0.00043483,120]
[400457982,1767581856093,562.48966768,0.00043483,120]
[400457983,1767581856554,613.46573092,0.00043483,120]
[400457984,1767581857350,590.77469112,0.00043483,120]
[400457985,1767581858901,576.85712243,0.00043483,120]
[400457986,1767581859624,523.27015728,0.00043483,120]
[400457987,1767581860814,593.00802017,0.00043483,120]
[400457988,1767581861626,560.6667171,0.00043483,120]
[400457989,1767581862724,189.47033639,0.00043483,120]
[400457990,1767581863597,556.24824146,0.00043483,120]
[400457991,1767581864540,206.13798786,0.00043483,120]
[400457992,1767581865192,500.0,0.00043483,120]
[400457993,1767581865970,580.64384684,0.00043483,120]
[400457994,1767581866024,598.15961648,0.00043483,120]
[400457995,1767581866081,503.77996057,0.00043483,30]
[400457996,1767581867696,486.0,0.00043483,120]
[400457997,1767581869703,272.11284572,0.00043483,120]
[400457998,1767581870085,518.31191358,0.00043483,120]
[400457999,1767581870741,527.78234011,0.00043483,120]
[400458000,1767581870982,612.7827013,0.00043483,120]
[400458001,1767581871046,540.10000932,0.00043483,120]
[400458002,1767581871917,535.73867175,0.00043483,120]
[400458003,1767581872940,639.5990917,0.00043483,120]
[400458004,1767581873672,613.86073017,0.00043483,120]
[400458005,1767581874520,521.12583235,0.00043483,120]
[400458006,1767581876190,488.24398699,0.00043483,120]
[400458007,1767581876327,500.0,0.00043483,120]
[400458008,1767581877677,540.92820413,0.00043483,120]
[400458009,1767581878020,176.17872639,0.00043483,120]
[400458010,1767581878074,539.83975766,0.00043483,120]
[400458011,1767581878574,500.0,0.00043483,120]
[400458012,1767581878801,525.17067088,0.00043483,120]
[400458013,1767581879879,546.74889684,0.00043483,120]
[400458014,1767581881581,559.58978514,0.00043483,120]
[400458015,1767581881717,521.77644804,0.00043483,120]
[400458016,1767581882064,360.32794686,0.00043483,120]
[400458017,1767581882373,521.98310738,0.00043483,120]
[400458018,1767581883927,223.94771157,0.00043483,120]
[400458019,1767581884170,562.25711466,0.00043483,120]
[400458020,1767581886616,516.11431961,0.00043483,120]
[400458021,1767581887361,605.94881316,0.00043483,120]
[400458022,1767581888599,520.59633765,0.00043483,120]
[400458023,1767581889049,536.46947238,0.00043483,120]
[400458024,1767581889119,529.75218872,0.00043483,120]
[400458025,1767581892491,500.0,0.00043483,120]
[400458026,1767581892737,500.0,0.00043483,120]
[400458027,1767581893852,426.21348626,0.00043483,120]
[400458028,1767581893908,552.46445554,0.00043483,120]
[400458029,1767581895516,527.76127891,0.00043483,120]
[400458030,1767581895714,585.42948089,0.00043483,120]
[400458031,1767581896440,500.0,0.00043483,120]
[400458032,1767581896575,568.56744325,0.00043483,120]
[400458033,1767581897499,556.3739081,0.00043483,120]
[400458034,1767581898327,277.24822554,0.00043483,120]
[400458035,1767581899075,540.87071782,0.00043483,120]
[400458036,1767581901257,500.0,0.00043483,120]
[400458037,1767581901626,500.0,0.00043483,120]
[400458038,1767581902280,524.35541097,0.00043483,120]
[400458039,1767581902467,544.94459267,0.00043483,120]
[400458040,1767581904134,595.89709794,0.00043483,120]
[400458041,1767581904290,500.0,0.00043483,120]
[400458042,1767581904522,628.59315015,0.00043483,120]
[400458043,1767581906381,500.0,0.00043483,120]
[400458044,1767581906741,500.0,0.00043483,120]
[400458045,1767581910031,500.0,0.00043483,120]
[400458046,1767581910246,646.29156958,0.00043483,120]
[400458047,1767581911048,500.0,0.00043483,120]
[400458048,1767581912043,500.0,0.00043483,120]
[400458049,1767581912274,500.0,0.00043483,120]
[400458050,1767581912502,276.34544834,0.00043483,120]
[400458051,1767581913097,578.54794,0.00043483,120]
[400458052,1767581918694,537.15300755,0.00043483,120]
[400458053,1767581919216,500.0,0.00043483,120]
[400458054,1767581919449,551.49400924,0.00043483,120]
[400458055,1767581919802,387.59861014,0.00043483,120]
[400458056,1767581923593,500.0,0.00043483,120]
[400458057,1767581923725,500.0,0.00043483,120]
[400458058,1767581923816,646.66875789,0.00043483,120]
[400458059,1767581923955,181.8215499,0.00043483,120]
[400458060,1767581924871,500.0,0.00043483,30]
[400458061,1767581925119,511.80085175,0.00043483,30]
[400458062,1767581925871,546.13766325,0.00043483,120]
[400458063,1767581927790,500.0,0.00043483,120]
[400458064,1767581928061,180.76243894,0.00043483,120]
[400458065,1767581928183,551.06500189,0.00043483,120]
[400458066,1767581929808,500.0,0.00043483,120]
[400458067,1767581930058,523.96380188,0.00043483,120]
[400458068,1767581931598,563.07217466,0.00043483,120]
[400458069,1767581932306,500.0,0.00043483,120]
[400458070,1767581932548,156.28,0.00043483,120]
[400458071,1767581933077,500.0,0.00043483,120]
[400458072,1767581933477,515.3144978,0.00043483,120]
[400458073,1767581933530,506.37835045,0.00043483,120]
[400458074,1767581934292,500.0,0.00043483,120]
[400458075,1767581934530,500.0,0.00043483,120]
[400458076,1767581935586,507.9759111,0.00043483,120]
[400458077,1767581937590,579.65250141,0.00043483,120]
[400458078,1767581938057,500.0,0.00043483,120]
[400458079,1767581938314,530.11291906,0.00043483,120]
[400458080,1767581940164,500.0,0.00043483,120]
[400458081,1767581940446,526.53468253,0.00043483,120]
[400458082,1767581941421,500.0,0.00043483,120]
[400458083,1767581941656,500.0,0.00043483,120]
[400458084,1767581942967,524.28661366,0.00043483,120]
[400458085,1767581943532,500.0,0.00043483,120]
[400458086,1767581943761,500.0,0.00043483,120]
[400458087,1767581946524,525.23327612,0.00043483,120]
[400458088,1767581948495,534.60446288,0.00043483,120]
[400458089,1767581951763,528.53541304,0.00043483,120]
[400458090,1767581952225,518.99849313,0.00043483,120]
[400458091,1767581955282,500.0,0.00043483,120]
[400458092,1767581955696,617.60961945,0.00043483,120]
[400458093,1767581956203,500.0,0.00043483,120]
[400458094,1767581956448,500.0,0.00043483,120]
[400458095,1767581957675,504.1794627,0.00043483,120]
[400458096,1767581958321,500.0,0.00043483,120]
[400458097,1767581958577,370.52398862,0.00043483,120]
[400458098,1767581960423,537.1394865,0.00043483,120]
[400458099,1767581960485,500.0,0.00043483,120]
[400458100,1767581960546,500.0,0.00043483,120]
[400458101,1767581961113,534.45597014,0.00043483,120]
[400458102,1767581961943,527.21284478,0.00043483,120]
[400458103,1767581962927,274.62877556,0.00043483,120]
[400458104,1767581966276,500.0,0.00043483,120]
[400458105,1767581966532,500.0,0.00043483,120]
[400458106,1767581967507,500.0,0.00043483,120]
[400458107,1767581967755,500.0,0.00043483,120]
[400458108,1767581967966,500.0,0.00043483,120]
[400458109,1767581968209,500.0,0.00043483,120]
[400458110,1767581969826,500.0,0.00043483,120]
[400458111,1767581970070,334.77953518,0.00043483,120]
[400458112,1767581971768,500.0,0.00043483,120]
[400458113,1767581972113,516.70307287,0.00043483,120]
[400458114,1767581973101,500.0,0.00043483,120]
[400458115,1767581973334,500.0,0.00043483,120]
[400458116,1767581973620,500.0,0.00043483,120]
[400458117,1767581973854,199.74667517,0.00043483,120]
[400458118,1767581974984,500.0,0.00043483,120]
[400458119,1767581975412,500.0,0.00043483,120]
[400458120,1767581975631,500.0,0.00043483,120]
[400458121,1767581975901,522.13766494,0.00043483,120]
[400458122,1767581982068,552.34292883,0.00043483,120]
[400458123,1767581982489,500.0,0.00043483,120]
[400458124,1767581982608,500.0,0.00043483,120]
[400458125,1767581985752,500.0,0.00043483,120]
[400458126,1767581986022,531.67285082,0.00043483,120]
[400458127,1767581986738,500.0,0.00043483,120]
[400458128,1767581986992,507.05549368,0.00043483,120]
[400458130,1767581993082,585.85047054,0.00043483,120]
[400458131,1767581996421,500.0,0.00043483,120]
[400458132,1767581996655,589.62975903,0.00043483,120]
[400458133,1767582003387,579.7980033,0.00043483,120]
[400458134,1767582003598,500.0,0.00043483,120]
[400458135,1767582003890,610.63725142,0.00043483,120]
[400458136,1767582009078,500.0,0.00043467,120]
[400458137,1767582009312,325.94384894,0.00043467,120]
[400458138,1767582010586,500.0,0.00043467,120]
[400458139,1767582010730,500.0,0.00043467,120]
[400458140,1767582011232,500.0,0.00043467,120]
[400458141,1767582011500,570.01884434,0.00043467,120]
[400458142,1767582012587,500.0,0.00043467,120]
[400458143,1767582012831,601.34913907,0.00043467,120]
[400458144,1767582013608,500.0,0.00043467,120]
[400458145,1767582013727,533.79343604,0.00043467,120]
[400458146,1767582013942,500.0,0.00043467,120]
[400458147,1767582014216,532.0713891,0.00043467,120]
[400458148,1767582014681,500.0,0.00043467,120]
[400458149,1767582014922,500.0,0.00043467,120]
[400458150,1767582019178,500.0,0.00043467,120]
[400458151,1767582019419,519.90486451,0.00043467,120]
[400458152,1767582019482,500.0,0.00043467,120]
[400458153,1767582019740,500.0,0.00043467,120]
[400458154,1767582021234,546.07923934,0.00043467,120]
[400458155,1767582021390,500.0,0.00043467,120]
[400458156,1767582021649,500.0,0.00043467,120]
[400458157,1767582021898,500.0,0.00043467,120]
[400458158,1767582022139,500.0,0.00043467,120]
[400458159,1767582022189,551.0235806,0.00043467,35]
[400458160,1767582023039,500.0,0.00043467,120]
[400458161,1767582023290,588.91675353,0.00043467,120]
[400458162,1767582023490,500.0,0.00043467,120]
[400458163,1767582023855,540.08038056,0.00043467,120]
[400458164,1767582024141,500.0,0.00043467,120]
[400458165,1767582024383,575.89334175,0.00043467,120]
[400458166,1767582025056,531.68382984,0.00043467,100]
[400458167,1767582025150,507.01712531,0.00043467,120]
[400458168,1767582026601,500.0,0.00043467,120]
[400458169,1767582026831,583.5074049,0.00043467,120]
[400458170,1767582027257,500.0,0.00043467,120]
[400458171,1767582027501,300.0,0.00043467,120]
[400458172,1767582027592,595.36855419,0.00043467,120]
[400458173,1767582028199,500.0,0.00043467,120]
[400458174,1767582028443,500.0,0.00043467,120]
[400458175,1767582028644,500.0,0.00043467,120]
[400458176,1767582028878,500.0,0.00043467,120]
[400458177,1767582030073,509.78893539,0.00043467,120]
[400458178,1767582031656,505.88055967,0.00043467,120]
[400458179,1767582032827,500.0,0.00043467,120]
[400458180,1767582033084,515.84296062,0.00043467,120]
[400458181,1767582034416,500.0,0.00043467,120]
[400458182,1767582034663,544.37612303,0.00043467,120]
[400458183,1767582034751,500.0,0.00043467,120]
[400458184,1767582035048,500.0,0.00043467,120]
[400458185,1767582035104,500.0,0.00043467,30]
[400458186,1767582035357,645.88931376,0.00043467,30]
[400458187,1767582035496,500.0,0.00043467,120]
[400458188,1767582035755,537.64539302,0.00043467,120]
[400458189,1767582037181,500.0,0.00043467,120]
[400458190,1767582037424,547.25004421,0.00043467,120]
[400458191,1767582039545,500.0,0.00043467,120]
[400458192,1767582039607,500.0,0.00043467,120]
[400458193,1767582039803,261.04477419,0.00043467,120]
[400458194,1767582040602,500.0,0.00043467,120]
[400458195,1767582040835,517.72438743,0.00043467,120]
[400458196,1767582041191,500.0,0.00043467,120]
[400458197,1767582041445,582.67804608,0.00043467,120]
[400458198,1767582041836,500.0,0.00043467,30]
[400458199,1767582041882,515.11266971,0.00043467,120]
[400458200,1767582042067,555.97230116,0.00043467,30]
[400458201,1767582043246,500.0,0.00043467,120]
[400458202,1767582043477,570.53980287,0.00043467,120]
[400458203,1767582045235,500.0,0.00043467,120]
[400458204,1767582045478,533.19640667,0.00043467,120]
[400458205,1767582045779,500.0,0.00043467,120]
[400458206,1767582045829,345.3062521,0.00043467,120]
[400458207,1767582046032,534.54174102,0.00043467,120]
[400458208,1767582046765,500.0,0.00043467,120]
[400458209,1767582046991,603.30898229,0.00043467,120]
[400458210,1767582047137,500.0,0.00043467,120]
[400458211,1767582047374,549.05016663,0.00043467,120]
[400458212,1767582047489,500.0,0.00043467,120]
[400458213,1767582047724,526.18786664,0.00043467,120]
[400458214,1767582048096,500.0,0.00043467,120]
[400458215,1767582048332,524.14637691,0.00043467,120]
[400458216,1767582048795,500.0,0.00043467,30]
[400458217,1767582049027,590.00307234,0.00043467,30]
[400458218,1767582049139,500.0,0.00043467,120]
[400458219,1767582049379,500.0,0.00043467,120]
[400458220,1767582049429,550.34321271,0.00043467,120]
[400458221,1767582049608,554.14577433,0.00043467,120]
[400458222,1767582050338,500.0,0.00043467,120]
[400458223,1767582050585,548.92386158,0.00043467,120]
[400458224,1767582052236,500.0,0.00043467,120]
[400458225,1767582052325,217.56118271,0.00043467,120]
[400458226,1767582052462,500.0,0.00043467,120]
[400458227,1767582053108,500.0,0.00043467,120]
[400458228,1767582053383,530.96340687,0.00043467,120]
[400458229,1767582054146,500.0,0.00043467,120]
[400458230,1767582054381,404.04505008,0.00043467,120]
[400458231,1767582054848,479.76576756,0.00043467,120]
[400458232,1767582055435,500.0,0.00043467,120]
[400458233,1767582055685,538.69993344,0.00043467,120]
[400458234,1767582056146,500.0,0.00043467,120]
[400458235,1767582056382,513.20531733,0.00043467,120]
[400458236,1767582057617,500.0,0.00043467,120]
[400458237,1767582057862,548.5197352,0.00043467,120]
[400458238,1767582058092,500.0,0.00043467,120]
[400458239,1767582058347,632.72314325,0.00043467,120]
[400458240,1767582059408,500.0,0.00043467,120]
[400458241,1767582059586,500.0,0.00043467,120]
[400458242,1767582059674,533.62690006,0.00043467,120]
[400458243,1767582059834,596.48251967,0.00043467,120]
[400458244,1767582059894,500.0,0.00043467,120]
[400458245,1767582060141,529.01708574,0.00043467,120]
[400458246,1767582061111,512.56884237,0.00043467,30]
[400458247,1767582061683,500.0,0.00043467,120]
[400458248,1767582062290,591.63465049,0.00043467,120]
[400458249,1767582062810,500.0,0.00043467,120]
[400458250,1767582063039,517.59550844,0.00043467,120]
[400458251,1767582064057,500.0,0.00043467,120]
[400458252,1767582064138,500.0,0.00043467,120]
[400458253,1767582064302,623.31843095,0.00043467,120]
[400458254,1767582064594,549.15974206,0.00043467,120]
[400458255,1767582066175,1000.0,0.00043467,120]
[400458256,1767582066321,500.0,0.00043467,120]
[400458257,1767582066380,1055.38569926,0.00043467,120]
[400458258,1767582066572,636.46742838,0.00043467,120]
[400458259,1767582066701,500.0,0.00043467,120]
[400458260,1767582068210,551.54058665,0.00043467,120]
[400458261,1767582071959,500.0,0.00043467,120]
[400458262,1767582072086,500.0,0.00043467,120]
[400458263,1767582072179,556.73545975,0.00043467,120]
[400458264,1767582072409,500.0,0.00043467,120]
[400458265,1767582073013,500.0,0.00043467,120]
[400458266,1767582073136,500.0,0.00043467,120]
[400458267,1767582073246,543.42575564,0.00043467,120]
[400458268,1767582073389,553.56613106,0.00043467,120]
[400458269,1767582074254,500.0,0.00043467,30]
[400458270,1767582074520,523.07420162,0.00043467,30]
[400458271,1767582075336,500.0,0.00043467,120]
[400458272,1767582075399,500.0,0.00043467,120]
[400458273,1767582075526,500.0,0.00043467,120]
[400458274,1767582075640,500.0,0.00043467,120]
[400458275,1767582075689,518.64670758,0.00043467,120]
[400458276,1767582075875,283.74108278,0.00043467,120]
[400458277,1767582076417,500.0,0.00043467,120]
[400458278,1767582076612,500.0,0.00043467,120]
[400458279,1767582076871,525.90558975,0.00043467,120]
[400458280,1767582076928,500.0,0.00043467,120]
[400458281,1767582076996,537.686116,0.00043467,120]
[400458282,1767582077158,521.46233404,0.00043467,120]
[400458283,1767582077207,344.1598288,0.00043467,120]
[400458284,1767582077578,500.0,0.00043467,120]
[400458285,1767582077823,590.91958169,0.00043467,120]
[400458286,1767582078801,500.0,0.00043467,120]
[400458287,1767582079053,500.0,0.00043467,120]
[400458288,1767582079112,515.47058606,0.00043467,120]
[400458289,1767582079303,573.01028765,0.00043467,120]
[400458290,1767582080492,500.0,0.00043467,120]
[400458291,1767582080743,616.02171609,0.00043467,120]
[400458292,1767582080800,500.0,0.00043467,120]
[400458293,1767582080996,505.97802012,0.00043467,120]
[400458294,1767582081633,500.0,0.00043467,120]
[400458295,1767582082168,533.37415767,0.00043467,120]
[400458296,1767582082725,500.0,0.00043467,120]
[400458297,1767582082775,500.0,0.00043467,120]
[400458298,1767582082856,517.72398415,0.00043467,120]
[400458299,1767582082966,641.40569207,0.00043467,120]
[400458300,1767582083020,579.91534644,0.00043467,120]
[400458301,1767582083375,500.0,0.00043467,30]
[400458302,1767582083631,500.0,0.00043467,30]
[400458303,1767582084642,500.0,0.00043467,120]
[400458304,1767582084902,289.91210533,0.00043467,120]
[400458305,1767582085009,500.0,0.00043467,120]
[400458306,1767582085260,514.99847509,0.00043467,120]
[400458307,1767582085981,500.0,0.00043467,120]
[400458308,1767582086216,529.03970002,0.00043467,120]
[400458309,1767582086375,533.61900097,0.00043467,120]
[400458310,1767582087115,500.0,0.00043467,120]
[400458311,1767582087212,500.0,0.00043467,120]
[400458312,1767582087383,527.80724892,0.00043467,120]
[400458313,1767582087452,614.83164998,0.00043467,120]
[400458314,1767582088926,500.0,0.00043467,120]
[400458315,1767582089152,524.99509323,0.00043467,120]
[400458316,1767582090494,500.0,0.00043467,120]
[400458317,1767582090539,500.0,0.00043467,120]
[400458318,1767582090644,576.06011499,0.00043467,120]
[400458319,1767582090726,515.61728221,0.00043467,120]
[400458320,1767582090801,559.40071676,0.00043467,120]
[400458321,1767582091445,500.0,0.00043467,120]
[400458322,1767582091691,500.0,0.00043467,120]
[400458323,1767582092287,500.0,0.00043467,120]
[400458324,1767582092400,500.0,0.00043467,120]
[400458325,1767582092526,525.82974341,0.00043467,120]
[400458326,1767582092626,535.89547924,0.00043467,120]
[400458327,1767582092811,500.0,0.00043467,120]
[400458328,1767582093059,500.0,0.00043467,120]
[400458329,1767582094113,500.0,0.00043467,120]
[400458330,1767582094325,500.0,0.00043467,120]
[400458331,1767582094380,419.01714228,0.00043467,120]
[400458332,1767582094565,647.50069886,0.00043467,120]
[400458333,1767582094614,500.0,0.00043467,120]
[400458334,1767582094955,547.82792789,0.00043467,120]
[400458335,1767582095750,373.79175007,0.00043467,120]
[400458336,1767582096331,500.0,0.00043467,120]
[400458337,1767582096492,500.0,0.00043467,120]
[400458338,1767582096592,500.0,0.00043467,120]
[400458339,1767582096740,609.95618516,0.00043467,120]
[400458340,1767582096816,500.0,0.00043467,120]
[400458341,1767582097056,554.16134299,0.00043467,120]
[400458342,1767582097106,500.0,0.00043467,120]
[400458343,1767582097337,519.57601305,0.00043467,120]
[400458344,1767582097463,173.99143853,0.00043467,120]
[400458345,1767582098646,545.27638962,0.00043467,120]
[400458346,1767582098851,500.0,0.00043467,120]
[400458347,1767582098898,500.0,0.00043467,120]
[400458348,1767582099139,631.87098055,0.00043467,120]
[400458349,1767582099439,500.0,0.00043467,120]
[400458350,1767582099672,545.44975069,0.00043467,120]
[400458351,1767582100209,500.0,0.00043467,120]
[400458352,1767582100460,569.70946826,0.00043467,120]
[400458353,1767582100796,500.0,0.00043467,120]
[400458354,1767582101032,500.0,0.00043467,120]
[400458355,1767582101077,500.0,0.00043467,120]
[400458356,1767582101263,517.57905861,0.00043467,120]
[400458357,1767582101320,223.07192229,0.00043467,120]
[400458358,1767582101842,500.0,0.00043467,120]
[400458359,1767582102076,512.84958008,0.00043467,120]
[400458360,1767582103084,500.0,0.00043467,120]
[400458361,1767582103333,526.55379201,0.00043467,120]
[400458362,1767582103840,309.50769199,0.00043467,120]
[400458363,1767582105094,500.0,0.00043467,120]
[400458364,1767582105332,519.10489598,0.00043467,120]
[400458365,1767582105927,500.0,0.00043467,120]
[400458366,1767582106022,632.05378963,0.00043467,120]
[400458367,1767582107109,500.0,0.00043467,120]
[400458368,1767582107462,518.74676087,0.00043467,120]
[400458369,1767582108082,575.52355975,0.00043467,120]
[400458370,1767582108127,500.0,0.00043467,120]
[400458371,1767582109005,500.0,0.00043467,120]
[400458372,1767582109246,529.9203697,0.00043467,120]
[400458373,1767582110021,500.0,0.00043467,120]
[400458374,1767582110259,599.21451186,0.00043467,120]
[400458375,1767582110964,500.0,0.00043467,120]
[400458376,1767582111247,500.0,0.00043467,120]
[400458377,1767582112216,500.0,0.00043467,120]
[400458378,1767582112631,500.0,0.00043467,120]
[400458379,1767582112828,500.0,0.00043467,120]
[400458380,1767582112874,571.79254544,0.00043467,120]
[400458381,1767582112917,525.85045559,0.00043467,120]
[400458382,1767582113077,511.96677256,0.00043467,120]
[400458383,1767582113120,500.0,0.00043467,120]
[400458384,1767582113382,500.0,0.00043467,120]
[400458385,1767582113433,546.66631626,0.00043467,120]
[400458386,1767582113751,557.65819929,0.00043467,120]
[400458387,1767582114671,500.0,0.00043467,120]
[400458388,1767582114923,500.0,0.00043467,120]
[400458389,1767582114971,344.60507307,0.00043467,120]
[400458390,1767582115488,500.0,0.00043467,120]
[400458391,1767582115758,546.81815369,0.00043467,120]
[400458392,1767582117441,500.0,0.00043467,120]
[400458393,1767582117676,500.0,0.00043467,120]
[400458394,1767582117724,500.0,0.00043467,120]
[400458395,1767582117937,640.93145119,0.00043467,120]
[400458396,1767582119165,500.0,0.00043467,120]
[400458397,1767582119412,514.59763737,0.00043467,120]
[400458398,1767582119810,500.0,0.00043467,120]
[400458399,1767582119856,500.0,0.00043467,120]
[400458400,1767582120074,568.4359728,0.00043467,120]
[400458401,1767582120125,500.0,0.00043467,120]
[400458402,1767582121481,574.03363402,0.00043467,120]
[400458403,1767582122574,500.0,0.00043467,120]
[400458404,1767582122681,500.0,0.00043467,120]
[400458405,1767582122814,554.09235887,0.00043467,120]
[400458406,1767582122927,557.75644636,0.00043467,120]
[400458407,1767582123359,500.0,0.00043467,120]
[400458408,1767582123605,526.0873428,0.00043467,120]
[400458409,1767582124851,285.16384774,0.00043467,120]
[400458410,1767582125511,500.0,0.00043467,120]
[400458411,1767582125605,500.0,0.00043467,60]
[400458412,1767582125765,511.66498118,0.00043467,120]
[400458413,1767582125872,500.0,0.00043467,60]
[400458414,1767582127777,541.95286311,0.00043467,120]
[400458415,1767582131248,500.0,0.00043467,120]
[400458416,1767582131486,562.9865012,0.00043467,120]
[400458417,1767582132796,500.0,0.00043467,120]
[400458418,1767582133032,595.04644331,0.00043467,120]
[400458419,1767582133214,500.0,0.00043467,120]
[400458420,1767582133455,528.7897767,0.00043467,120]
[400458421,1767582135021,500.0,0.00043467,120]
[400458422,1767582135072,500.0,0.00043467,120]
[400458423,1767582135288,432.08875773,0.00043467,120]
[400458424,1767582135908,525.63642987,0.00043467,120]
[400458425,1767582138553,519.9961847,0.00043467,120]
[400458426,1767582138905,500.0,0.00043467,120]
[400458427,1767582139141,614.33849328,0.00043467,120]
[400458428,1767582139303,500.0,0.00043467,120]
[400458429,1767582139574,566.10994721,0.00043467,120]
[400458430,1767582139644,500.0,0.00043467,120]
[400458431,1767582139888,245.16902114,0.00043467,120]
[400458432,1767582139932,500.0,0.00043467,120]
[400458433,1767582140174,285.0,0.00043467,120]
[400458434,1767582140336,500.0,0.00043467,120]
[400458435,1767582140575,524.6036064,0.00043467,120]
[400458436,1767582140649,500.0,0.00043467,120]
[400458437,1767582140888,500.0,0.00043467,120]
[400458438,1767582141192,500.0,0.00043467,120]
[400458439,1767582141411,500.0,0.00043467,120]
[400458440,1767582141459,526.96542948,0.00043467,120]
[400458441,1767582141644,509.16523822,0.00043467,120]
[400458442,1767582142219,500.0,0.00043467,120]
[400458443,1767582142264,500.0,0.00043467,120]
[400458444,1767582142501,500.0,0.00043467,120]
[400458445,1767582142654,530.58186219,0.00043467,120]
[400458446,1767582142709,500.0,0.00043467,120]
[400458447,1767582142753,500.0,0.00043467,120]
[400458448,1767582142942,500.0,0.00043467,120]
[400458449,1767582142988,500.0,0.00043467,120]
[400458450,1767582143202,500.0,0.00043467,120]
[400458451,1767582143413,500.0,0.00043467,120]
[400458452,1767582143468,500.0,0.00043467,120]
[400458453,1767582143656,469.94,0.00043467,120]
[400458454,1767582143709,583.92098087,0.00043467,120]
[400458455,1767582144178,500.0,0.00043467,120]
[400458456,1767582145816,522.64270759,0.00043467,120]
[400458457,1767582145938,500.0,0.00043467,120]
[400458458,1767582146179,521.52321412,0.00043467,120]